fUSD/lending_fUSD_20250524
["ID","MTS","AMOUNT","RATE_DAILY","PERIOD"]
[362227954,1748112682699,-842.68,0.00019315,2]
[362227955,1748112682708,-420.0,0.00019315,2]
[362227956,1748112682718,-6795.24,0.00019315,2]
[362227957,1748112682727,-285.39802636,0.00019315,2]
[362227958,1748112682736,-222627.24,0.00019315,2]
[362227959,1748112682746,-420.0,0.00019315,2]
[362227960,1748112682755,-420.0,0.00019315,2]
[362227961,1748112682764,-3287.24,0.00019315,2]
[362227962,1748112682774,-420.0,0.00019315,2]
[362227963,1748112682783,-420.0,0.00019315,2]
[362227964,1748112682792,-420.0,0.00019315,2]
[362227965,1748112682801,-2672.65,0.00019315,2]
[362227966,1748112682811,-420.0,0.00019315,2]
[362227967,1748112682820,-181.22441643,0.00019315,2]
[362227968,1748112682829,-891.86,0.00019315,2]
[362227969,1748112682839,-3069.02,0.00019315,2]
[362227970,1748112682848,-695.96,0.00019315,2]
[362227971,1748112682858,-422.23087129,0.00019315,2]
[362227972,1748112682867,-420.0,0.00019315,2]
[362227973,1748112682876,-420.0,0.00019315,2]
[362227974,1748112682885,-2800.63,0.00019315,2]
[362227975,1748112682895,-1463.93,0.00019315,2]
[362227976,1748112682904,-420.0,0.00019315,2]
[362227977,1748112682914,-420.0,0.00019315,2]
[362227978,1748112682923,-420.0,0.00019315,2]
[362227979,1748112682932,-420.0,0.00019315,2]
[362227980,1748112682942,-420.0,0.00019315,2]
[362227981,1748112682951,-448.45,0.00019315,2]
[362227982,1748112682960,-650.51,0.00019315,2]
[362227983,1748112682970,-420.0,0.00019315,2]
[362227984,1748112682980,-420.0,0.00019315,2]
[362227985,1748112682990,-420.0,0.00019315,2]
[362227986,1748112682999,-420.0,0.00019315,2]
[362227987,1748112683009,-420.0,0.00019315,2]
[362227988,1748112683018,-1299.41,0.00019315,2]
[362227989,1748112683027,-420.0,0.00019315,2]
[362227990,1748112683036,-420.0,0.00019315,2]
[362227991,1748112683045,-420.0,0.00019315,2]
[362227992,1748112683055,-420.0,0.00019315,2]
[362227993,1748112683064,-420.0,0.00019315,2]
[362227994,1748112683073,-420.0,0.00019315,2]
[362227995,1748112683083,-420.0,0.00019315,2]
[362227996,1748112683092,-420.0,0.00019315,2]
[362227997,1748112683101,-838.06,0.00019315,2]
[362227998,1748112683111,-420.0,0.00019315,2]
[362227999,1748112683120,-175.03372909,0.00019315,2]
[362228000,1748112683130,-8770.5,0.00019315,2]
[362228001,1748112683139,-420.0,0.00019315,2]
[362228002,1748112683149,-420.0,0.00019315,2]
[362228003,1748112683158,-420.0,0.00019315,2]
[362228004,1748112683167,-420.0,0.00019315,2]
[362228005,1748112683177,-6392.23,0.00019315,2]
[362228006,1748112683191,-420.0,0.00019315,2]
[362228007,1748112683200,-420.0,0.00019315,2]
[362228008,1748112683211,-2597.59,0.00019315,2]
[362228009,1748112683222,-420.0,0.00019315,2]
[362228010,1748112683232,-420.0,0.00019315,2]
[362228011,1748112683242,-420.0,0.00019315,2]
[362228012,1748112683252,-594.43,0.00019315,2]
[362228013,1748112683262,-420.0,0.00019315,2]
[362228014,1748112683271,-6530.44937995,0.00019315,2]
[362228015,1748112684149,-420.0,0.00019178,2]
[362228016,1748112684160,-420.0,0.00019178,2]
[362228017,1748112684169,-420.0,0.00019205,2]
[362228018,1748112684180,-420.0,0.00019205,2]
[362228019,1748112684190,-420.0,0.00019232,2]
[362228020,1748112684199,-420.0,0.00019232,2]
[362228021,1748112684209,-420.0,0.0001926,2]
[362228022,1748112684219,-420.0,0.0001926,2]
[362228023,1748112684228,-420.0,0.0001926,2]
[362228024,1748112684239,-420.0,0.00019287,2]
[362228025,1748112684249,-420.0,0.00019287,2]
[362228026,1748112684259,-420.0,0.00019287,2]
[362228027,1748112684268,-2514.85062005,0.00019315,2]
[362228028,1748112684277,-512.64,0.00019315,2]
[362228029,1748112684287,-420.0,0.00019315,2]
[362228030,1748112684296,-435.27,0.00019315,2]
[362228031,1748112684306,-420.0,0.00019315,2]
[362228032,1748112684316,-420.0,0.00019315,2]
[362228033,1748112684326,-420.0,0.00019315,2]
[362228034,1748112684335,-420.0,0.00019315,2]
[362228035,1748112684345,-420.0,0.00019315,2]
[362228036,1748112684355,-609.13,0.00019315,2]
[362228037,1748112684365,-420.0,0.00019315,2]
[362228038,1748112684374,-420.0,0.00019315,2]
[362228039,1748112684384,-420.0,0.00019315,2]
[362228040,1748112684394,-420.0,0.00019315,2]
[362228041,1748112684403,-441.77490593,0.00019315,2]
[362228042,1748112684413,-6586.41,0.00019315,2]
[362228043,1748112684423,-420.0,0.00019315,2]
[362228044,1748112684433,-3389.54,0.00019315,2]
[362228045,1748112684443,-420.0,0.00019315,2]
[362228046,1748112684453,-420.0,0.00019315,2]
[362228047,1748112684463,-420.0,0.00019315,2]
[362228048,1748112684473,-420.0,0.00019315,2]
[362228049,1748112684483,-151.0,0.00019315,2]
[362228050,1748112684493,-6899.94808137,0.00019315,2]
[362228051,1748112684698,-420.0,0.00019178,2]
[362228052,1748112684708,-420.0,0.00019178,2]
[362228053,1748112684718,-420.0,0.00019178,2]
[362228054,1748112684727,-349.51975267,0.00019178,2]
[362228055,1748112684738,-4519.53191863,0.00019315,2]
[362228056,1748112684748,-420.0,0.00019315,2]
[362228057,1748112684757,-420.0,0.00019315,2]
[362228058,1748112684767,-300.30372561,0.00019315,2]
[362228059,1748112684803,-119.69627439,0.00019315,2]
[362228060,1748112684813,-420.0,0.00019315,2]
[362228061,1748112684823,-420.0,0.00019315,2]
[362228062,1748112684833,-640.61872572,0.00019315,2]
[362228063,1748112799686,500.0,0.0002737,120]
[362228064,1748112859458,-1033.08651202,0.00019999,5]
[362228066,1748112885590,234.17,0.00013699,2]
[362228067,1748112888413,-878.63948798,0.0002,4]
[362228068,1748112907242,-150.0,0.00018928,2]
[362228069,1748112998396,150.0,0.00017007,2]
[362228070,1748113145848,250.0,0.00015,2]
[362228071,1748113146934,300.0,0.00017,2]
[362228072,1748113361839,-194.05352217,0.0001756,2]
[362228073,1748113692479,-152.0,0.0001756,2]
[362228074,1748113694964,-59.0,0.0001756,2]
[362228075,1748113801253,498.57,0.00017007,2]
[362228076,1748113809357,553.7,0.00016244,2]
[362228079,1748113831576,-353.55172949,0.00018215,2]
[362228080,1748113831587,-300.0,0.00018215,2]
[362228081,1748113831598,-346.44827051,0.00018215,2]
[362228082,1748113831608,-173.0,0.00018231,2]
[362228083,1748113831618,-150.0,0.00018233,7]
[362228084,1748113831629,-300.0,0.00018247,2]
[362228085,1748113831638,-300.0,0.00018247,2]
[362228086,1748113831647,-187.85244555,0.00018248,2]
[362228087,1748113831679,-413.67977416,0.00018248,2]
[362228088,1748113831691,-1443.55,0.00018248,2]
[362228089,1748113831702,-441.681,0.00018248,2]
[362228090,1748113831739,-8456.92678029,0.00018248,2]
[362228091,1748113831750,-208.28,0.00018248,2]
[362228092,1748113831759,-250.0,0.0001829,2]
[362228093,1748113831769,-207.4,0.0001831,2]
[362228094,1748113831779,-553.7,0.00018508,2]
[362228095,1748113831789,-192.081249,0.00018928,2]
[362228096,1748113831798,-559.84,0.00019,2]
[362228097,1748113831808,-350.0,0.00019,2]
[362228098,1748113831818,-155.07514328,0.00019078,2]
[362228099,1748113831828,-272.0873869,0.00019078,2]
[362228100,1748113831840,-1919.09531514,0.00019078,2]
[362228102,1748113831850,-5063.12876985,0.00019078,2]
[362228104,1748113831859,-1159.67,0.000191,2]
[362228105,1748113831868,-2044.5717549,0.00019105,2]
[362228109,1748113831898,-326.29134845,0.00019105,2]
[362228692,1748113837767,-1033.08700673,0.00019105,2]
[362228904,1748113839847,-1659.17865972,0.00019105,2]
[362228906,1748113839856,-2191.18270204,0.00019108,2]
[362228908,1748113839866,-5063.1287698,0.00019133,2]
[362228910,1748113839876,-500.0,0.00019137,2]
[362228911,1748113839886,-593.15125439,0.00019137,2]
[362228914,1748113839898,-2191.18270204,0.00019139,2]
[362228916,1748113839908,-5063.1287698,0.0001916,2]
[362228917,1748113839918,-151.0,0.00019166,2]
[362228918,1748113839928,-668.65185757,0.00019166,2]
[362228920,1748113839938,-668.65185757,0.00019166,2]
[362228922,1748113839948,-971.51,0.00019168,2]
[362228924,1748113839958,-2191.18270204,0.00019169,2]
[362228926,1748113839967,-526.35503197,0.00019173,2]
[362228928,1748113839977,-500.0,0.00019177,2]
[362228930,1748113839987,-420.0,0.00019178,2]
[362228932,1748113839997,-420.0,0.00019178,2]
[362228934,1748113840007,-421.43087313,0.00019178,2]
[362228936,1748113840016,-420.0,0.00019178,2]
[362228938,1748113840025,-420.0,0.00019178,2]
[362228940,1748113840034,-152.925138,0.00019178,2]
[362228942,1748113840044,-424.88374206,0.00019178,2]
[362228944,1748113840053,-420.0,0.00019178,2]
[362228946,1748113840063,-420.0,0.00019178,2]
[362228948,1748113840072,-152.925138,0.00019178,2]
[362228950,1748113840081,-420.0,0.00019178,2]
[362228952,1748113840090,-420.0,0.00019178,2]
[362228953,1748113840100,-420.0,0.00019178,2]
[362228955,1748113840109,-447.34060619,0.00019178,2]
[362228957,1748113840119,-420.0,0.00019178,2]
[362228959,1748113840128,-420.0,0.00019178,2]
[362228961,1748113840138,-488.70599512,0.00019178,2]
[362228963,1748113840147,-420.0,0.00019178,2]
[362228965,1748113840157,-427.70832178,0.00019178,2]
[362228967,1748113840166,-427.85975138,0.00019178,2]
[362228969,1748113840176,-425.10181041,0.00019178,2]
[362228971,1748113840185,-420.0,0.00019178,2]
[362228973,1748113840194,-420.0,0.00019178,2]
[362228975,1748113840203,-420.0,0.00019178,2]
[362228977,1748113840213,-447.3475434,0.00019178,2]
[362228979,1748113840222,-225.86622494,0.00019178,2]
[362228981,1748113840231,-426.50655964,0.00019178,2]
[362228983,1748113840241,-420.0,0.00019178,2]
[362228984,1748113840250,-420.0,0.00019178,2]
[362228986,1748113840260,-420.0,0.00019178,2]
[362228988,1748113840269,-426.21447317,0.00019178,2]
[362228990,1748113840280,-456.70318383,0.00019178,2]
[362228992,1748113840290,-420.0,0.00019178,2]
[362228994,1748113840301,-367.81496907,0.00019178,2]
[362228996,1748113840314,-420.0,0.00019178,2]
[362228998,1748113840324,-423.55580743,0.00019178,2]
[362229000,1748113840335,-451.10511426,0.00019178,2]
[362229002,1748113840344,-420.0,0.00019178,2]
[362229004,1748113840354,-420.0,0.00019178,2]
[362229006,1748113840363,-426.39853467,0.00019178,2]
[362229008,1748113840372,-423.23589226,0.00019178,2]
[362229010,1748113840383,-420.0,0.00019178,2]
[362229012,1748113840392,-420.0,0.00019178,2]
[362229014,1748113840402,-420.0,0.00019178,2]
[362229016,1748113840411,-426.85081385,0.00019178,2]
[362229018,1748113840420,-420.0,0.00019178,2]
[362229020,1748113840430,-420.0,0.00019178,2]
[362229022,1748113840439,-333.17742512,0.00019178,2]
[362229024,1748113840448,-420.0,0.00019178,2]
[362229026,1748113840457,-430.54461633,0.00019178,2]
[362229028,1748113840467,-420.0,0.00019178,2]
[362229030,1748113840476,-426.83879693,0.00019178,2]
[362229032,1748113840485,-420.0,0.00019178,2]
[362229034,1748113840494,-420.0,0.00019178,2]
[362229036,1748113840504,-420.0,0.00019178,2]
[362229038,1748113840513,-420.0,0.00019178,2]
[362229040,1748113840523,-516.79819074,0.00019178,2]
[362229042,1748113840532,-420.0,0.00019178,2]
[362229044,1748113840542,-420.0,0.00019178,2]
[362229045,1748113840551,-420.0,0.00019178,2]
[362229047,1748113840561,-420.0,0.00019178,2]
[362229049,1748113840570,-420.0,0.00019178,2]
[362229051,1748113840582,-156.85609308,0.00019178,2]
[362229053,1748113840591,-510.97266457,0.00019178,2]
[362229055,1748113840600,-420.0,0.00019178,2]
[362229057,1748113840609,-153.76231708,0.00019178,2]
[362229059,1748113840618,-420.0,0.00019178,2]
[362229061,1748113840627,-420.0,0.00019178,2]
[362229063,1748113840638,-420.0,0.00019178,2]
[362229065,1748113840648,-420.0,0.00019178,2]
[362229067,1748113840657,-168.03335773,0.00019178,2]
[362229069,1748113840666,-420.0,0.00019178,2]
[362229071,1748113840675,-420.0,0.00019178,2]
[362229073,1748113840685,-420.0,0.00019178,2]
[362229075,1748113840694,-300.0,0.00019178,2]
[362229077,1748113840703,-420.0,0.00019178,2]
[362229079,1748113840712,-420.0,0.00019178,2]
[362229081,1748113840721,-420.0,0.00019178,2]
[362229083,1748113840731,-427.031734,0.00019178,2]
[362229084,1748113840741,-420.0,0.00019178,2]
[362229086,1748113840750,-420.0,0.00019178,2]
[362229088,1748113840759,-538.12733261,0.00019178,2]
[362229090,1748113840769,-420.0,0.00019178,2]
[362229092,1748113840780,-420.0,0.00019178,2]
[362229094,1748113840790,-420.0,0.00019178,2]
[362229096,1748113840799,-420.0,0.00019178,2]
[362229098,1748113840809,-420.0,0.00019178,2]
[362229100,1748113840818,-173.99886518,0.00019178,2]
[362229102,1748113840827,-420.0,0.00019178,2]
[362229104,1748113840836,-420.0,0.00019178,2]
[362229106,1748113840846,-420.0,0.00019178,2]
[362229108,1748113840855,-420.0,0.00019178,2]
[362229110,1748113840865,-420.0,0.00019178,2]
[362229112,1748113840875,-420.0,0.00019178,2]
[362229114,1748113840885,-335.81211446,0.00019178,2]
[362229116,1748113840895,-420.0,0.00019178,2]
[362229118,1748113840907,-420.0,0.00019178,2]
[362229120,1748113840916,-420.0,0.00019178,2]
[362229122,1748113840925,-420.0,0.00019178,2]
[362229124,1748113840935,-420.0,0.00019178,2]
[362229126,1748113840944,-424.67069697,0.00019178,2]
[362229128,1748113840954,-420.0,0.00019178,2]
[362229130,1748113840963,-420.0,0.00019178,2]
[362229132,1748113840972,-420.0,0.00019178,2]
[362229134,1748113840983,-420.0,0.00019178,2]
[362229136,1748113840993,-535.0720288,0.00019178,2]
[362229138,1748113841002,-420.0,0.00019178,2]
[362229140,1748113841011,-420.0,0.00019178,2]
[362229142,1748113841020,-166.63241116,0.00019178,2]
[362229144,1748113841029,-420.0,0.00019178,2]
[362229146,1748113841038,-420.0,0.00019178,2]
[362229148,1748113841047,-420.0,0.00019178,2]
[362229150,1748113841056,-426.45269598,0.00019178,2]
[362229152,1748113841065,-425.68726748,0.00019178,2]
[362229154,1748113841075,-420.0,0.00019178,2]
[362229156,1748113841084,-420.0,0.00019178,2]
[362229158,1748113841093,-420.0,0.00019178,2]
[362229160,1748113841103,-420.0,0.00019178,2]
[362229162,1748113841112,-429.0650818,0.00019178,2]
[362229164,1748113841122,-429.22999202,0.00019178,2]
[362229166,1748113841131,-420.0,0.00019178,2]
[362229168,1748113841141,-420.0,0.00019178,2]
[362229170,1748113841151,-420.0,0.00019178,2]
[362229172,1748113841161,-420.0,0.00019178,2]
[362229174,1748113841170,-420.0,0.00019178,2]
[362229176,1748113841179,-420.0,0.00019178,2]
[362229178,1748113841188,-420.0,0.00019178,2]
[362229180,1748113841198,-471.99881712,0.00019178,2]
[362229182,1748113841207,-420.0,0.00019178,2]
[362229184,1748113841217,-420.0,0.00019178,2]
[362229185,1748113841226,-420.0,0.00019178,2]
[362229187,1748113841236,-420.0,0.00019178,2]
[362229189,1748113841245,-935.56,0.00019178,2]
[362229191,1748113841255,-423.06837547,0.00019178,2]
[362229193,1748113841264,-420.0,0.00019178,2]
[362229195,1748113841273,-420.0,0.00019178,2]
[362229196,1748113841282,-420.0,0.00019178,2]
[362229197,1748113841293,-420.0,0.00019178,2]
[362229198,1748113841303,-420.0,0.00019178,2]
[362229199,1748113841312,-425.63793452,0.00019178,2]
[362229200,1748113841322,-420.0,0.00019178,2]
[362229201,1748113841331,-420.0,0.00019178,2]
[362229202,1748113841341,-420.0,0.00019178,2]
[362229203,1748113841350,-542.97110951,0.00019178,2]
[362229204,1748113841359,-466.68,0.00019178,2]
[362229205,1748113841368,-420.0,0.00019178,2]
[362229207,1748113841377,-427.11353859,0.00019178,2]
[362229209,1748113841387,-420.0,0.00019178,2]
[362229211,1748113841396,-420.0,0.00019178,2]
[362229213,1748113841406,-420.0,0.00019178,2]
[362229215,1748113841415,-420.0,0.00019178,2]
[362229217,1748113841424,-420.0,0.00019178,2]
[362229219,1748113841434,-420.0,0.00019178,2]
[362229221,1748113841443,-420.0,0.00019178,2]
[362229223,1748113841453,-420.0,0.00019178,2]
[362229225,1748113841462,-618.84,0.00019178,2]
[362229227,1748113841471,-420.0,0.00019178,2]
[362229229,1748113841481,-420.0,0.00019178,2]
[362229231,1748113841490,-420.0,0.00019178,2]
[362229233,1748113841500,-420.0,0.00019178,2]
[362229235,1748113841509,-420.0,0.00019178,2]
[362229237,1748113841520,-420.0,0.00019178,2]
[362229239,1748113841530,-420.0,0.00019178,2]
[362229241,1748113841539,-420.0,0.00019178,2]
[362229243,1748113841549,-420.0,0.00019178,2]
[362229245,1748113841558,-420.0,0.00019178,2]
[362229247,1748113841567,-420.0,0.00019178,2]
[362229249,1748113841577,-420.0,0.00019178,2]
[362229251,1748113841586,-529.7655752,0.00019178,2]
[362229253,1748113841595,-420.0,0.00019178,2]
[362229255,1748113841604,-420.0,0.00019178,2]
[362229257,1748113841614,-420.0,0.00019178,2]
[362229259,1748113841623,-429.40087816,0.00019178,2]
[362229261,1748113841633,-420.0,0.00019178,2]
[362229263,1748113841642,-420.0,0.00019178,2]
[362229265,1748113841653,-420.0,0.00019178,2]
[362229268,1748113841663,-420.0,0.00019178,2]
[362229270,1748113841672,-380.89891487,0.00019178,2]
[362229271,1748113841682,-420.0,0.00019178,2]
[362229273,1748113841691,-420.0,0.00019178,2]
[362229275,1748113841702,-420.0,0.00019178,2]
[362229277,1748113841711,-420.0,0.00019178,2]
[362229279,1748113841721,-420.0,0.00019178,2]
[362229281,1748113841731,-420.0,0.00019178,2]
[362229283,1748113841741,-1640.44,0.00019178,2]
[362229285,1748113841751,-420.0,0.00019178,2]
[362229287,1748113841760,-420.0,0.00019178,2]
[362229289,1748113841770,-420.0,0.00019178,2]
[362229291,1748113841780,-426.89947891,0.00019178,2]
[362229293,1748113841789,-420.0,0.00019178,2]
[362229295,1748113841799,-420.0,0.00019178,2]
[362229297,1748113841808,-420.0,0.00019178,2]
[362229299,1748113841818,-420.0,0.00019178,2]
[362229301,1748113841827,-170.31759495,0.00019178,2]
[362229303,1748113841837,-420.0,0.00019178,2]
[362229305,1748113841847,-420.0,0.00019178,2]
[362229308,1748113841857,-420.0,0.00019178,2]
[362229309,1748113841866,-420.0,0.00019178,2]
[362229311,1748113841875,-508.00724753,0.00019178,2]
[362229313,1748113841885,-420.0,0.00019178,2]
[362229315,1748113841894,-420.0,0.00019178,2]
[362229317,1748113841906,-420.0,0.00019178,2]
[362229319,1748113841916,-420.0,0.00019178,2]
[362229322,1748113841927,-420.0,0.00019178,2]
[362229323,1748113841938,-420.0,0.00019178,2]
[362229325,1748113841949,-1304.97,0.00019178,2]
[362229328,1748113841958,-420.0,0.00019178,2]
[362229330,1748113841968,-470.21281493,0.00019178,2]
[362229332,1748113841977,-1094.78,0.00019178,2]
[362229334,1748113841989,-420.0,0.00019178,2]
[362229336,1748113841998,-420.0,0.00019178,2]
[362229338,1748113842007,-420.0,0.00019178,2]
[362229340,1748113842016,-420.0,0.00019178,2]
[362229342,1748113842025,-420.0,0.00019178,2]
[362229344,1748113842036,-420.0,0.00019178,2]
[362229345,1748113842045,-420.0,0.00019178,2]
[362229346,1748113842054,-420.0,0.00019178,2]
[362229348,1748113842063,-420.0,0.00019178,2]
[362229350,1748113842073,-420.0,0.00019178,2]
[362229352,1748113842083,-420.0,0.00019178,2]
[362229354,1748113842092,-1523.82,0.00019178,2]
[362229356,1748113842102,-464.4018632,0.00019178,2]
[362229358,1748113842111,-420.0,0.00019178,2]
[362229360,1748113842121,-420.0,0.00019178,2]
[362229362,1748113842130,-420.0,0.00019178,2]
[362229364,1748113842140,-420.0,0.00019178,2]
[362229366,1748113842149,-420.0,0.00019178,2]
[362229368,1748113842160,-420.0,0.00019178,2]
[362229370,1748113842169,-420.0,0.00019178,2]
[362229372,1748113842181,-420.0,0.00019178,2]
[362229374,1748113842191,-420.0,0.00019178,2]
[362229376,1748113842200,-511.77945381,0.00019178,2]
[362229378,1748113842210,-420.0,0.00019178,2]
[362229380,1748113842219,-420.0,0.00019178,2]
[362229382,1748113842229,-275.77266004,0.00019178,2]
[362229384,1748113842238,-420.0,0.00019178,2]
[362229386,1748113842247,-420.0,0.00019178,2]
[362229388,1748113842256,-420.0,0.00019178,2]
[362229390,1748113842266,-432.06079394,0.00019178,2]
[362229392,1748113842275,-420.0,0.00019178,2]
[362229394,1748113842285,-420.0,0.00019178,2]
[362229396,1748113842294,-420.0,0.00019178,2]
[362229398,1748113842303,-420.0,0.00019178,2]
[362229400,1748113842313,-562.63822599,0.00019178,2]
[362229402,1748113842322,-420.0,0.00019178,2]
[362229404,1748113842332,-420.0,0.00019178,2]
[362229407,1748113842341,-420.0,0.00019178,2]
[362229409,1748113842350,-420.0,0.00019178,2]
[362229411,1748113842359,-250.0,0.00019178,2]
[362229414,1748113842368,-420.0,0.00019178,2]
[362229417,1748113842378,-420.0,0.00019178,2]
[362229420,1748113842387,-420.0,0.00019178,2]
[362229423,1748113842397,-420.0,0.00019178,2]
[362229426,1748113842406,-420.0,0.00019178,2]
[362229428,1748113842415,-424.96431695,0.00019178,2]
[362229431,1748113842424,-2127.57,0.00019178,2]
[362229433,1748113842433,-420.0,0.00019178,2]
[362229435,1748113842442,-437.55930265,0.00019178,2]
[362229437,1748113842452,-426.91552214,0.00019178,2]
[362229439,1748113842461,-420.0,0.00019178,2]
[362229441,1748113842471,-427.86199486,0.00019178,2]
[362229443,1748113842480,-435.88570733,0.00019178,2]
[362229445,1748113842489,-420.0,0.00019178,2]
[362229447,1748113842498,-420.0,0.00019178,2]
[362229451,1748113842507,-505.71517681,0.00019178,2]
[362229453,1748113842517,-420.0,0.00019178,2]
[362229455,1748113842527,-420.0,0.00019178,2]
[362229457,1748113842536,-420.0,0.00019178,2]
[362229459,1748113842546,-420.0,0.00019178,2]
[362229461,1748113842555,-480.59960526,0.00019178,2]
[362229464,1748113842564,-420.0,0.00019178,2]
[362229466,1748113842573,-1339.99,0.00019178,2]
[362229468,1748113842582,-427.06972904,0.00019178,2]
[362229470,1748113842591,-420.0,0.00019178,2]
[362229472,1748113842600,-420.0,0.00019178,2]
[362229483,1748113842610,-420.0,0.00019178,2]
[362229489,1748113842851,-420.0,0.00019178,2]
[362229491,1748113842861,-420.0,0.00019178,2]
[362229493,1748113842872,-420.0,0.00019178,2]
[362229495,1748113842881,-420.0,0.00019178,2]
[362229497,1748113842892,-420.0,0.00019178,2]
[362229499,1748113842903,-420.0,0.00019178,2]
[362229501,1748113842914,-420.0,0.00019178,2]
[362229503,1748113842924,-433.7735613,0.00019178,2]
[362229505,1748113842933,-420.0,0.00019178,2]
[362229507,1748113842943,-420.0,0.00019178,2]
[362229509,1748113842953,-519.59496372,0.00019178,2]
[362229511,1748113842963,-420.0,0.00019178,2]
[362229513,1748113842972,-420.0,0.00019178,2]
[362229515,1748113842983,-394.72143708,0.00019178,2]
[362229517,1748113842994,-1899.35,0.00019178,2]
[362229520,1748113843003,-420.0,0.00019178,2]
[362229521,1748113843012,-420.0,0.00019178,2]
[362229523,1748113843021,-420.0,0.00019178,2]
[362229526,1748113843031,-420.0,0.00019178,2]
[362229528,1748113843040,-420.0,0.00019178,2]
[362229530,1748113843049,-420.0,0.00019178,2]
[362229532,1748113843059,-420.0,0.00019178,2]
[362229534,1748113843068,-420.0,0.00019178,2]
[362229536,1748113843078,-420.0,0.00019178,2]
[362229538,1748113843087,-424.85354659,0.00019178,2]
[362229540,1748113843096,-420.0,0.00019178,2]
[362229542,1748113843105,-420.0,0.00019178,2]
[362229544,1748113843115,-420.0,0.00019178,2]
[362229546,1748113843124,-420.0,0.00019178,2]
[362229548,1748113843133,-420.0,0.00019178,2]
[362229550,1748113843143,-420.0,0.00019178,2]
[362229552,1748113843152,-420.0,0.00019178,2]
[362229554,1748113843162,-420.0,0.00019178,2]
[362229556,1748113843171,-420.0,0.00019178,2]
[362229559,1748113843182,-420.0,0.00019178,2]
[362229561,1748113843192,-552.05057655,0.00019178,2]
[362229563,1748113843201,-426.74977432,0.00019178,2]
[362229565,1748113843210,-420.0,0.00019178,2]
[362229567,1748113843221,-420.0,0.00019178,2]
[362229569,1748113843230,-420.0,0.00019178,2]
[362229571,1748113843239,-420.0,0.00019178,2]
[362229573,1748113843249,-1418.33,0.00019178,2]
[362229575,1748113843258,-420.0,0.00019178,2]
[362229577,1748113843267,-420.0,0.00019178,2]
[362229579,1748113843276,-420.0,0.00019178,2]
[362229581,1748113843285,-420.0,0.00019178,2]
[362229583,1748113843295,-420.0,0.00019178,2]
[362229585,1748113843304,-420.0,0.00019178,2]
[362229587,1748113843313,-420.0,0.00019178,2]
[362229589,1748113843323,-434.06469557,0.00019178,2]
[362229591,1748113843332,-434.62424502,0.00019178,2]
[362229593,1748113843341,-420.0,0.00019178,2]
[362229595,1748113843351,-420.0,0.00019178,2]
[362229597,1748113843361,-420.0,0.00019178,2]
[362229599,1748113843373,-420.0,0.00019178,2]
[362229601,1748113843383,-459.98350771,0.00019178,2]
[362229603,1748113843393,-420.0,0.00019178,2]
[362229605,1748113843402,-420.0,0.00019178,2]
[362229607,1748113843412,-427.76786408,0.00019178,2]
[362229609,1748113843421,-423.03127337,0.00019178,2]
[362229611,1748113843431,-420.0,0.00019178,2]